[Event "Titled Tuesday Blitz May 23 Early 2023"]
[White "Bryakin, Mikhail"]
[Black "Rangel, Daniel"]
[WhiteFideId "4165314"]
[BlackFideId "2124475"]
[WhiteElo "2467"]
[BlackElo "2256"]
[Result "1-0"]
[Round "03"]
[TimeControl "180+2"]
[Date "2023.05.23"]
[WhiteClock "0:01:18"]
[BlackClock "0:00:10"]

1. Nf3 {[%clk 0:02:56]}  Nf6 {[%clk 0:02:58]} 2. c4 {[%clk 0:02:48]}  e6 {[%clk 0:02:57]} 3. g3 {[%clk 0:02:48]}  d5 {[%clk 0:02:57]} 4. Bg2 {[%clk 0:02:48]}  Be7 {[%clk 0:02:57]} 5. O-O {[%clk 0:02:49]}  O-O {[%clk 0:02:57]} 6. b3 {[%clk 0:02:46]}  a5 {[%clk 0:02:57]} 7. d3 {[%clk 0:02:39]}  a4 {[%clk 0:02:53]} 8. Bb2 {[%clk 0:02:38]}  axb3 {[%clk 0:02:46]} 9. axb3 {[%clk 0:02:39]}  Rxa1 {[%clk 0:02:46]} 10. Bxa1 {[%clk 0:02:40]}  c5 {[%clk 0:02:41]} 11. Nbd2 {[%clk 0:02:35]}  Nc6 {[%clk 0:02:40]} 12. Ne5 {[%clk 0:02:30]}  Nxe5 {[%clk 0:02:36]} 13. Bxe5 {[%clk 0:02:31]}  b6 {[%clk 0:02:31]} 14. Qc2 {[%clk 0:02:31]}  Bb7 {[%clk 0:02:31]} 15. Ra1 {[%clk 0:02:30]}  Qd7 {[%clk 0:02:25]} 16. Ra7 {[%clk 0:02:29]}  Ra8 {[%clk 0:02:24]} 17. Qa2 {[%clk 0:02:30]}  Qc8 {[%clk 0:01:58]} 18. h3 {[%clk 0:02:23]}  Bd8 {[%clk 0:01:57]} 19. Rxa8 {[%clk 0:02:15]}  Qxa8 {[%clk 0:01:55]} 20. Qb2 {[%clk 0:02:15]}  Be7 {[%clk 0:01:43]} 21. Bf3 {[%clk 0:02:14]}  Ne8 {[%clk 0:01:35]} 22. g4 {[%clk 0:02:13]}  d4 {[%clk 0:01:31]} 23. Bxb7 {[%clk 0:02:07]}  Qxb7 {[%clk 0:01:32]} 24. Nf3 {[%clk 0:02:08]}  b5 {[%clk 0:01:27]} 25. Qa2 {[%clk 0:02:06]}  bxc4 {[%clk 0:01:24]} 26. bxc4 {[%clk 0:02:07]}  f6 {[%clk 0:01:20]} 27. Bg3 {[%clk 0:02:08]}  Kf7 {[%clk 0:01:18]} 28. Nd2 {[%clk 0:02:01]}  Bd6 {[%clk 0:01:11]} 29. Bxd6 {[%clk 0:02:01]}  Nxd6 {[%clk 0:01:11]} 30. Qa5 {[%clk 0:02:02]}  Qb4 {[%clk 0:00:42]} 31. Qc7+ {[%clk 0:02:00]}  Kg6 {[%clk 0:00:38]} 32. Qxd6 {[%clk 0:01:49]}  Qxd2 {[%clk 0:00:37]} 33. Qxe6 {[%clk 0:01:48]}  Qb4 {[%clk 0:00:20]} 34. Qf5+ {[%clk 0:01:47]}  Kf7 {[%clk 0:00:19]} 35. Kg2 {[%clk 0:01:44]}  g6 {[%clk 0:00:18]} 36. Qd7+ {[%clk 0:01:44]}  Kg8 {[%clk 0:00:18]} 37. Qe6+ {[%clk 0:01:44]}  Kg7 {[%clk 0:00:18]} 38. Qe7+ {[%clk 0:01:44]}  Kg8 {[%clk 0:00:18]} 39. Qxf6 {[%clk 0:01:44]}  Qa5 {[%clk 0:00:18]} 40. Qc6 {[%clk 0:01:41]}  Kg7 {[%clk 0:00:10]} 41. Kf3 {[%clk 0:01:40]}  Kh6 {[%clk 0:00:07]} 42. Kg2 {[%clk 0:01:37]}  Qa7 {[%clk 0:00:06]} 43. h4 {[%clk 0:01:32]}  Kg7 {[%clk 0:00:06]} 44. Qe4 {[%clk 0:01:31]}  h6 {[%clk 0:00:05]} 45. g5 {[%clk 0:01:31]}  hxg5 {[%clk 0:00:05]} 46. hxg5 {[%clk 0:01:30]}  Kh7 {[%clk 0:00:05]} 47. Qd5 {[%clk 0:01:24]}  Qe7 {[%clk 0:00:03]} 48. Kf1 {[%clk 0:01:21]}  Qa7 {[%clk 0:00:02]} 49. f4 {[%clk 0:01:18]}  Qc7 {[%clk 0:00:02]} 50. Qe5 {[%clk 0:01:17]}  Qa7 {[%clk 0:00:03]} 51. Kf2 {[%clk 0:01:17]}  Qa3 {[%clk 0:00:02]} 52. Qe7+ {[%clk 0:01:16]}  Kg8 {[%clk 0:00:02]} 53. Qe8+ {[%clk 0:01:16]}  Kg7 {[%clk 0:00:03]} 54. Qe5+ {[%clk 0:01:17]}  Kg8 {[%clk 0:00:03]} 55. Qf6 {[%clk 0:01:17]}  Kh7 {[%clk 0:00:02]} 56. Qf7+ {[%clk 0:01:17]}  Kh8 {[%clk 0:00:03]} 57. Qxg6 {[%clk 0:01:16]}  Qc1 {[%clk 0:00:04]} 58. Qf6+ {[%clk 0:01:16]}  Kg8 {[%clk 0:00:04]} 59. Qe6+ {[%clk 0:01:16]}  Kh8 {[%clk 0:00:04]} 60. Qh3+ {[%clk 0:01:16]}  Kg7 {[%clk 0:00:04]} 61. Qf3 {[%clk 0:01:15]}  Kg8 {[%clk 0:00:05]} 62. f5 {[%clk 0:01:13]}  Qxg5 {[%clk 0:00:06]} 63. Qg3 {[%clk 0:01:13]}  Qxg3+ {[%clk 0:00:06]} 64. Kxg3 {[%clk 0:01:14]}  Kf7 {[%clk 0:00:07]} 65. Kf4 {[%clk 0:01:15]}  Kf6 {[%clk 0:00:08]} 66. Ke4 {[%clk 0:01:15]}  Kg5 {[%clk 0:00:08]} 67. Ke5 {[%clk 0:01:15]}  Kg4 {[%clk 0:00:09]} 68. f6 {[%clk 0:01:15]}  Kg3 {[%clk 0:00:10]} 69. f7 {[%clk 0:01:16]}  Kf2 {[%clk 0:00:10]} 70. f8=Q+ {[%clk 0:01:16]}  Kxe2 {[%clk 0:00:11]} 71. Ke4 {[%clk 0:01:17]}  Kd2 {[%clk 0:00:10]} 72. Qxc5 {[%clk 0:01:18]} 1-0


[Site "https://www.chess.com"]

[Event "Titled Tuesday Blitz May 23 Early 2023"]
[White "Tatarinov, Dmitry"]
[Black "Bashirli, Saadat"]
[WhiteFideId "24160067"]
[BlackFideId "13429990"]
[WhiteElo "2326"]
[BlackElo "1408"]
[Result "1-0"]
[Round "03"]
[TimeControl "180+2"]
[Date "2023.05.23"]
[WhiteClock "0:00:39"]
[BlackClock "0:00:06"]

1. d4 {[%clk 0:03:00]}  d5 {[%clk 0:02:58]} 2. c4 {[%clk 0:03:01]}  e6 {[%clk 0:02:58]} 3. Nf3 {[%clk 0:03:01]}  c6 {[%clk 0:02:54]} 4. e3 {[%clk 0:03:01]}  Nf6 {[%clk 0:02:53]} 5. Bd3 {[%clk 0:03:00]}  dxc4 {[%clk 0:02:51]} 6. Bxc4 {[%clk 0:03:00]}  b5 {[%clk 0:02:52]} 7. Bd3 {[%clk 0:03:00]}  Nbd7 {[%clk 0:02:51]} 8. O-O {[%clk 0:03:00]}  Bd6 {[%clk 0:02:50]} 9. a4 {[%clk 0:03:01]}  Qb6 {[%clk 0:02:41]} 10. axb5 {[%clk 0:02:58]}  cxb5 {[%clk 0:02:42]} 11. e4 {[%clk 0:02:58]}  e5 {[%clk 0:02:40]} 12. Nc3 {[%clk 0:02:54]}  exd4 {[%clk 0:02:05]} 13. Nxb5 {[%clk 0:02:52]}  O-O {[%clk 0:02:02]} 14. Nbxd4 {[%clk 0:02:24]}  Ne5 {[%clk 0:01:55]} 15. Nxe5 {[%clk 0:02:19]}  Bxe5 {[%clk 0:01:54]} 16. Nf3 {[%clk 0:02:19]}  Bg4 {[%clk 0:01:50]} 17. Qe2 {[%clk 0:02:17]}  Rab8 {[%clk 0:01:43]} 18. h3 {[%clk 0:02:13]}  Bxf3 {[%clk 0:01:40]} 19. Qxf3 {[%clk 0:02:13]}  Bxb2 {[%clk 0:01:37]} 20. Rb1 {[%clk 0:01:58]}  Qd4 {[%clk 0:01:35]} 21. Bf4 {[%clk 0:01:56]}  Rb3 {[%clk 0:01:31]} 22. Rfd1 {[%clk 0:01:54]}  Rd8 {[%clk 0:01:27]} 23. e5 {[%clk 0:01:54]}  Rxd3 {[%clk 0:01:21]} 24. Rxd3 {[%clk 0:01:54]}  Qxd3 {[%clk 0:01:21]} 25. Qxd3 {[%clk 0:01:54]}  Rxd3 {[%clk 0:01:16]} 26. Rxb2 {[%clk 0:01:49]}  Nd7 {[%clk 0:01:14]} 27. Rb7 {[%clk 0:01:47]}  a5 {[%clk 0:01:10]} 28. Ra7 {[%clk 0:01:47]}  Rd5 {[%clk 0:01:08]} 29. Ra8+ {[%clk 0:01:45]}  Nf8 {[%clk 0:01:07]} 30. Kh2 {[%clk 0:01:37]}  h6 {[%clk 0:01:06]} 31. Bc1 {[%clk 0:01:32]}  Rd3 {[%clk 0:00:48]} 32. g4 {[%clk 0:01:17]}  Rc3 {[%clk 0:00:34]} 33. Bb2 {[%clk 0:01:13]}  Rb3 {[%clk 0:00:34]} 34. Bd4 {[%clk 0:01:12]}  Rb5 {[%clk 0:00:32]} 35. f4 {[%clk 0:01:11]}  g6 {[%clk 0:00:30]} 36. f5 {[%clk 0:01:09]}  Rd5 {[%clk 0:00:26]} 37. Be3 {[%clk 0:01:04]}  g5 {[%clk 0:00:24]} 38. e6 {[%clk 0:00:53]}  fxe6 {[%clk 0:00:20]} 39. fxe6 {[%clk 0:00:54]}  Re5 {[%clk 0:00:21]} 40. Bc5 {[%clk 0:00:52]}  Rxe6 {[%clk 0:00:20]} 41. Rxf8+ {[%clk 0:00:47]}  Kg7 {[%clk 0:00:21]} 42. Ra8 {[%clk 0:00:48]}  Re2+ {[%clk 0:00:19]} 43. Kg3 {[%clk 0:00:48]}  Ra2 {[%clk 0:00:18]} 44. Bd4+ {[%clk 0:00:45]}  Kg6 {[%clk 0:00:17]} 45. Ra7 {[%clk 0:00:45]}  h5 {[%clk 0:00:14]} 46. Ra6+ {[%clk 0:00:43]}  Kh7 {[%clk 0:00:11]} 47. gxh5 {[%clk 0:00:44]}  Ra4 {[%clk 0:00:08]} 48. Be3 {[%clk 0:00:43]}  Rh4 {[%clk 0:00:04]} 49. Bxg5 {[%clk 0:00:39]}  Rxh5 {[%clk 0:00:05]} 50. h4 {[%clk 0:00:38]}  Kg7 {[%clk 0:00:04]} 51. Kg4 {[%clk 0:00:37]}  Rh7 {[%clk 0:00:04]} 52. Rxa5 {[%clk 0:00:35]}  Rh8 {[%clk 0:00:03]} 53. Ra7+ {[%clk 0:00:35]}  Kg8 {[%clk 0:00:02]} 54. Ra8+ {[%clk 0:00:34]}  Kh7 {[%clk 0:00:02]} 55. Rxh8+ {[%clk 0:00:35]}  Kxh8 {[%clk 0:00:03]} 56. h5 {[%clk 0:00:36]}  Kh7 {[%clk 0:00:04]} 57. Kf5 {[%clk 0:00:37]}  Kg7 {[%clk 0:00:04]} 58. Bf4 {[%clk 0:00:37]}  Kh7 {[%clk 0:00:05]} 59. Kg5 {[%clk 0:00:38]}  Kg7 {[%clk 0:00:06]} 60. h6+ {[%clk 0:00:36]}  Kh7 {[%clk 0:00:06]} 61. Kh5 {[%clk 0:00:37]}  Kh8 {[%clk 0:00:05]} 62. Kg6 {[%clk 0:00:38]}  Kg8 {[%clk 0:00:05]} 63. h7+ {[%clk 0:00:38]}  Kh8 {[%clk 0:00:06]} 64. Be5# {[%clk 0:00:39]} 1-0


[Site "https://www.chess.com"]

[Event "Titled Tuesday Blitz May 23 Early 2023"]
[White "Tsyhanchuk, Stanislav"]
[Black "Jaracz, Pawel"]
[WhiteFideId "13505130"]
[BlackFideId "1102222"]
[WhiteElo "2173"]
[BlackElo "2438"]
[Result "0-1"]
[Round "03"]
[TimeControl "180+2"]
[Date "2023.05.23"]
[WhiteClock "0:00:18"]
[BlackClock "0:01:24"]

1. c4 {[%clk 0:03:00]}  e6 {[%clk 0:02:57]} 2. Nc3 {[%clk 0:03:00]}  d5 {[%clk 0:02:57]} 3. e3 {[%clk 0:03:00]}  Nf6 {[%clk 0:02:56]} 4. Nf3 {[%clk 0:03:00]}  Be7 {[%clk 0:02:55]} 5. b3 {[%clk 0:02:59]}  dxc4 {[%clk 0:02:52]} 6. bxc4 {[%clk 0:02:57]}  c5 {[%clk 0:02:52]} 7. Be2 {[%clk 0:02:51]}  b6 {[%clk 0:02:46]} 8. O-O {[%clk 0:02:49]}  Bb7 {[%clk 0:02:47]} 9. a4 {[%clk 0:02:48]}  Nc6 {[%clk 0:02:46]} 10. Ba3 {[%clk 0:02:43]}  O-O {[%clk 0:02:45]} 11. d4 {[%clk 0:02:20]}  cxd4 {[%clk 0:02:44]} 12. Bxe7 {[%clk 0:02:16]}  Qxe7 {[%clk 0:02:42]} 13. exd4 {[%clk 0:02:16]}  Rfd8 {[%clk 0:02:42]} 14. Nb5 {[%clk 0:01:58]}  Rac8 {[%clk 0:02:21]} 15. Qb3 {[%clk 0:01:51]}  Na5 {[%clk 0:02:18]} 16. Qa2 {[%clk 0:01:29]}  a6 {[%clk 0:02:15]} 17. Na3 {[%clk 0:01:28]}  Bxf3 {[%clk 0:02:09]} 18. Bxf3 {[%clk 0:01:29]}  Rxd4 {[%clk 0:02:09]} 19. Rac1 {[%clk 0:01:27]}  Nd7 {[%clk 0:02:06]} 20. Qb2 {[%clk 0:01:20]}  Qc5 {[%clk 0:01:56]} 21. Rcd1 {[%clk 0:01:07]}  Rxd1 {[%clk 0:01:53]} 22. Rxd1 {[%clk 0:01:08]}  Ne5 {[%clk 0:01:50]} 23. Be2 {[%clk 0:00:46]}  h6 {[%clk 0:01:44]} 24. Rc1 {[%clk 0:00:28]}  Nec6 {[%clk 0:01:41]} 25. Rb1 {[%clk 0:00:26]}  Rd8 {[%clk 0:01:28]} 26. Qxb6 {[%clk 0:00:18]}  Qxa3 {[%clk 0:01:24]} 0-1


[Site "https://www.chess.com"]

[Event "Titled Tuesday Blitz May 23 Early 2023"]
[White "Kramnik, Vladimir"]
[Black "Melikyan, Gnel"]
[WhiteFideId "4101588"]
[BlackFideId "54109990"]
[WhiteElo "2703"]
[BlackElo "2138"]
[Result "1-0"]
[Round "03"]
[TimeControl "180+2"]
[Date "2023.05.23"]
[WhiteClock "0:00:54"]
[BlackClock "0:00:04"]

1. c4 {[%clk 0:03:00]}  Nf6 {[%clk 0:02:59]} 2. Nc3 {[%clk 0:03:00]}  g6 {[%clk 0:02:58]} 3. g3 {[%clk 0:02:59]}  Bg7 {[%clk 0:02:58]} 4. Bg2 {[%clk 0:03:00]}  O-O {[%clk 0:02:59]} 5. d3 {[%clk 0:03:00]}  d6 {[%clk 0:02:56]} 6. Nf3 {[%clk 0:02:55]}  c5 {[%clk 0:02:52]} 7. Rb1 {[%clk 0:02:55]}  Nc6 {[%clk 0:02:51]} 8. a3 {[%clk 0:02:56]}  Rb8 {[%clk 0:02:19]} 9. b4 {[%clk 0:02:52]}  b6 {[%clk 0:02:18]} 10. O-O {[%clk 0:02:46]}  Bb7 {[%clk 0:02:17]} 11. Bd2 {[%clk 0:02:37]}  Nd7 {[%clk 0:02:06]} 12. Ne1 {[%clk 0:02:23]}  Re8 {[%clk 0:01:54]} 13. e3 {[%clk 0:02:18]}  e6 {[%clk 0:01:48]} 14. Qe2 {[%clk 0:02:17]}  Qe7 {[%clk 0:01:25]} 15. f4 {[%clk 0:02:13]}  a5 {[%clk 0:01:06]} 16. bxc5 {[%clk 0:02:05]}  bxc5 {[%clk 0:00:56]} 17. Rxb7 {[%clk 0:01:57]}  Rxb7 {[%clk 0:00:54]} 18. Bxc6 {[%clk 0:01:58]}  Rb2 {[%clk 0:00:51]} 19. Qd1 {[%clk 0:01:52]}  Rb6 {[%clk 0:00:36]} 20. Bb5 {[%clk 0:01:50]}  Ra8 {[%clk 0:00:35]} 21. Nf3 {[%clk 0:01:45]}  Nb8 {[%clk 0:00:27]} 22. Qa4 {[%clk 0:01:38]}  Qc7 {[%clk 0:00:26]} 23. Rb1 {[%clk 0:01:32]}  Rb7 {[%clk 0:00:24]} 24. Kg2 {[%clk 0:01:28]}  Nd7 {[%clk 0:00:19]} 25. Bxd7 {[%clk 0:01:23]}  Qxd7 {[%clk 0:00:19]} 26. Qxd7 {[%clk 0:01:23]}  Rxd7 {[%clk 0:00:20]} 27. Na4 {[%clk 0:01:20]}  d5 {[%clk 0:00:19]} 28. Nxc5 {[%clk 0:01:10]}  Rc7 {[%clk 0:00:17]} 29. d4 {[%clk 0:01:09]}  dxc4 {[%clk 0:00:14]} 30. Ne5 {[%clk 0:01:09]}  Bf8 {[%clk 0:00:13]} 31. Rb5 {[%clk 0:01:04]}  a4 {[%clk 0:00:12]} 32. Nxc4 {[%clk 0:01:01]}  Bxc5 {[%clk 0:00:11]} 33. dxc5 {[%clk 0:00:58]}  Rd8 {[%clk 0:00:08]} 34. Bc3 {[%clk 0:00:55]}  Rd3 {[%clk 0:00:04]} 35. Rb8+ {[%clk 0:00:54]} 1-0


[Site "https://www.chess.com"]

[Event "Titled Tuesday Blitz May 23 Early 2023"]
[White "Sychev, Klementy"]
[Black "bubeliang"]
[WhiteFideId "4114060"]
[WhiteElo "2583"]
[BlackElo "2601"]
[Result "1-0"]
[Round "03"]
[TimeControl "180+2"]
[Date "2023.05.23"]
[WhiteClock "0:00:16"]
[BlackClock "0:00:00"]

1. e4 {[%clk 0:03:00]}  c6 {[%clk 0:02:58]} 2. d4 {[%clk 0:02:58]}  d5 {[%clk 0:02:57]} 3. e5 {[%clk 0:02:58]}  c5 {[%clk 0:02:57]} 4. dxc5 {[%clk 0:02:56]}  e6 {[%clk 0:02:46]} 5. Qg4 {[%clk 0:02:55]}  h5 {[%clk 0:02:45]} 6. Qf4 {[%clk 0:02:54]}  Nd7 {[%clk 0:02:24]} 7. Nf3 {[%clk 0:02:41]}  Bxc5 {[%clk 0:02:13]} 8. Bd3 {[%clk 0:02:24]}  Nh6 {[%clk 0:02:06]} 9. O-O {[%clk 0:02:08]}  Nf8 {[%clk 0:01:39]} 10. Qg3 {[%clk 0:01:53]}  g6 {[%clk 0:01:16]} 11. Nc3 {[%clk 0:01:45]}  Bd7 {[%clk 0:01:08]} 12. a4 {[%clk 0:01:29]}  Qc7 {[%clk 0:00:56]} 13. Nb5 {[%clk 0:01:25]}  Bxb5 {[%clk 0:00:53]} 14. axb5 {[%clk 0:01:11]}  Nf5 {[%clk 0:00:49]} 15. Qf4 {[%clk 0:01:02]}  O-O-O {[%clk 0:00:45]} 16. Bd2 {[%clk 0:00:55]}  Nd7 {[%clk 0:00:40]} 17. b4 {[%clk 0:00:44]}  Bb6 {[%clk 0:00:33]} 18. Ra3 {[%clk 0:00:43]}  d4 {[%clk 0:00:27]} 19. c4 {[%clk 0:00:42]}  Qb8 {[%clk 0:00:21]} 20. c5 {[%clk 0:00:39]}  Bc7 {[%clk 0:00:22]} 21. b6 {[%clk 0:00:34]}  Bxe5 {[%clk 0:00:16]} 22. Nxe5 {[%clk 0:00:30]}  Qxe5 {[%clk 0:00:17]} 23. bxa7 {[%clk 0:00:29]}  Kc7 {[%clk 0:00:15]} 24. Qf3 {[%clk 0:00:27]}  g5 {[%clk 0:00:03]} 25. Bxg5 {[%clk 0:00:23]}  Qd5 {[%clk 0:00:04]} 26. Bf4+ {[%clk 0:00:22]}  Kc6 {[%clk 0:00:04]} 27. Be4 {[%clk 0:00:21]}  Nf6 {[%clk 0:00:04]} 28. Bxd5+ {[%clk 0:00:21]}  Nxd5 {[%clk 0:00:05]} 29. Bb8 {[%clk 0:00:20]}  Rxb8 {[%clk 0:00:05]} 30. axb8=Q {[%clk 0:00:20]}  Rxb8 {[%clk 0:00:05]} 31. Qxh5 {[%clk 0:00:18]}  Rf8 {[%clk 0:00:01]} 32. b5+ {[%clk 0:00:18]}  Kxc5 {[%clk 0:00:01]} 33. Rc1+ {[%clk 0:00:17]}  Nc3 {[%clk 0:00:02]} 34. Raxc3+ {[%clk 0:00:17]}  dxc3 {[%clk 0:00:03]} 35. Rxc3+ {[%clk 0:00:17]}  Kd4 {[%clk 0:00:03]} 36. Rc1 {[%clk 0:00:17]}  Ke5 {[%clk 0:00:03]} 37. Qg5 {[%clk 0:00:16]}  Kd6 {[%clk 0:00:02]} 38. Rd1+ {[%clk 0:00:16]}  Kc5 {[%clk 0:00:00]} 39. g4 {[%clk 0:00:16]} 1-0


[Site "https://www.chess.com"]

[Event "Titled Tuesday Blitz May 23 Early 2023"]
[White "hakanazeri2"]
[Black "Molina, Roberto Junio Brito"]
[BlackFideId "2109450"]
[WhiteElo "2597"]
[BlackElo "2376"]
[Result "0-1"]
[Round "03"]
[TimeControl "180+2"]
[Date "2023.05.23"]
[WhiteClock "0:00:06"]
[BlackClock "0:01:00"]

1. d4 {[%clk 0:03:00]}  d5 {[%clk 0:02:58]} 2. c4 {[%clk 0:02:59]}  c6 {[%clk 0:02:58]} 3. Nf3 {[%clk 0:02:59]}  Nf6 {[%clk 0:02:57]} 4. Nbd2 {[%clk 0:02:58]}  Bf5 {[%clk 0:02:51]} 5. b3 {[%clk 0:02:54]}  h6 {[%clk 0:02:46]} 6. Bb2 {[%clk 0:02:53]}  e6 {[%clk 0:02:46]} 7. e3 {[%clk 0:02:53]}  Nbd7 {[%clk 0:02:42]} 8. Be2 {[%clk 0:02:39]}  Bd6 {[%clk 0:02:41]} 9. Ne5 {[%clk 0:02:22]}  Qe7 {[%clk 0:02:39]} 10. g4 {[%clk 0:02:15]}  Bh7 {[%clk 0:02:32]} 11. h4 {[%clk 0:02:14]}  Ne4 {[%clk 0:02:26]} 12. Nxe4 {[%clk 0:01:09]}  Bxe4 {[%clk 0:02:24]} 13. Bf3 {[%clk 0:01:08]}  Bxf3 {[%clk 0:01:50]} 14. Nxf3 {[%clk 0:00:53]}  O-O-O {[%clk 0:01:44]} 15. Qd3 {[%clk 0:00:52]}  Kb8 {[%clk 0:01:40]} 16. O-O-O {[%clk 0:00:51]}  Nf6 {[%clk 0:01:40]} 17. Rhg1 {[%clk 0:00:38]}  Ne4 {[%clk 0:01:37]} 18. Rg2 {[%clk 0:00:36]}  g5 {[%clk 0:01:35]} 19. h5 {[%clk 0:00:32]}  f5 {[%clk 0:01:29]} 20. Nd2 {[%clk 0:00:31]}  Rhf8 {[%clk 0:01:26]} 21. f3 {[%clk 0:00:26]}  Nxd2 {[%clk 0:01:22]} 22. Rdxd2 {[%clk 0:00:26]}  Qf7 {[%clk 0:01:16]} 23. e4 {[%clk 0:00:09]}  Bf4 {[%clk 0:01:13]} 24. cxd5 {[%clk 0:00:07]}  cxd5 {[%clk 0:01:11]} 25. gxf5 {[%clk 0:00:06]}  dxe4 {[%clk 0:01:06]} 26. fxe4 {[%clk 0:00:07]}  exf5 {[%clk 0:01:05]} 27. e5 {[%clk 0:00:08]}  Qd5 {[%clk 0:01:02]} 28. Ba3 {[%clk 0:00:06]}  Qxg2 {[%clk 0:01:00]} 0-1


[Site "https://www.chess.com"]

[Event "Titled Tuesday Blitz May 23 Early 2023"]
[White "Vitiugov, Nikita"]
[Black "Ginzburg, Yakov"]
[WhiteFideId "4152956"]
[BlackFideId "4157176"]
[WhiteElo "2673"]
[BlackElo "2305"]
[Result "1-0"]
[Round "03"]
[TimeControl "180+2"]
[Date "2023.05.23"]
[WhiteClock "0:00:21"]
[BlackClock "0:00:00"]

1. Nf3 {[%clk 0:03:00]}  Nf6 {[%clk 0:02:58]} 2. g3 {[%clk 0:03:00]}  g6 {[%clk 0:02:58]} 3. Bg2 {[%clk 0:03:00]}  Bg7 {[%clk 0:02:59]} 4. O-O {[%clk 0:03:00]}  O-O {[%clk 0:02:59]} 5. d4 {[%clk 0:03:00]}  d5 {[%clk 0:02:59]} 6. c4 {[%clk 0:02:57]}  c6 {[%clk 0:02:59]} 7. Nc3 {[%clk 0:02:55]}  Ne4 {[%clk 0:02:58]} 8. Qb3 {[%clk 0:02:50]}  Qb6 {[%clk 0:02:43]} 9. Bf4 {[%clk 0:02:32]}  dxc4 {[%clk 0:02:20]} 10. Qxb6 {[%clk 0:02:30]}  axb6 {[%clk 0:01:45]} 11. Nxe4 {[%clk 0:02:28]}  Bf5 {[%clk 0:01:43]} 12. Nc3 {[%clk 0:02:16]}  b5 {[%clk 0:01:42]} 13. a3 {[%clk 0:02:17]}  Nd7 {[%clk 0:01:33]} 14. h3 {[%clk 0:02:14]}  Bc2 {[%clk 0:01:21]} 15. Rac1 {[%clk 0:02:11]}  Bb3 {[%clk 0:01:21]} 16. e4 {[%clk 0:01:58]}  Nb6 {[%clk 0:01:20]} 17. Be5 {[%clk 0:01:52]}  Bh6 {[%clk 0:01:09]} 18. Bf4 {[%clk 0:01:51]}  Bg7 {[%clk 0:01:08]} 19. Be3 {[%clk 0:01:50]}  Rfd8 {[%clk 0:01:04]} 20. d5 {[%clk 0:01:37]}  Na4 {[%clk 0:00:58]} 21. Nd4 {[%clk 0:01:23]}  Nxb2 {[%clk 0:00:56]} 22. dxc6 {[%clk 0:00:56]}  Bxd4 {[%clk 0:00:53]} 23. cxb7 {[%clk 0:00:54]}  Rab8 {[%clk 0:00:53]} 24. Bxd4 {[%clk 0:00:53]}  Rxd4 {[%clk 0:00:52]} 25. Nxb5 {[%clk 0:00:53]}  Rd7 {[%clk 0:00:49]} 26. e5 {[%clk 0:00:53]}  Nd3 {[%clk 0:00:49]} 27. Rc3 {[%clk 0:00:31]}  Nxe5 {[%clk 0:00:47]} 28. Ra1 {[%clk 0:00:24]}  Rd3 {[%clk 0:00:21]} 29. a4 {[%clk 0:00:22]}  Rd1+ {[%clk 0:00:06]} 30. Rxd1 {[%clk 0:00:21]}  Bxd1 {[%clk 0:00:00]} 31. a5 {[%clk 0:00:21]} 1-0


[Site "https://www.chess.com"]

[Event "Titled Tuesday Blitz May 23 Early 2023"]
[White "Urbina Perez, Juan Antonio"]
[Black "Mikhailovsky, Vladimir"]
[WhiteFideId "2217368"]
[BlackFideId "34105414"]
[WhiteElo "2197"]
[BlackElo "2271"]
[Result "1-0"]
[Round "03"]
[TimeControl "180+2"]
[Date "2023.05.23"]
[WhiteClock "0:00:12"]
[BlackClock "0:00:06"]

1. e4 {[%clk 0:03:00]}  e5 {[%clk 0:03:00]} 2. Nf3 {[%clk 0:02:59]}  d5 {[%clk 0:03:01]} 3. Nxe5 {[%clk 0:02:53]}  Bd6 {[%clk 0:03:01]} 4. d4 {[%clk 0:02:43]}  dxe4 {[%clk 0:03:01]} 5. Nc4 {[%clk 0:02:41]}  Nf6 {[%clk 0:03:01]} 6. Be2 {[%clk 0:02:38]}  O-O {[%clk 0:03:00]} 7. Nxd6 {[%clk 0:02:33]}  Qxd6 {[%clk 0:03:00]} 8. O-O {[%clk 0:02:33]}  Rd8 {[%clk 0:03:01]} 9. c3 {[%clk 0:02:33]}  c5 {[%clk 0:03:00]} 10. dxc5 {[%clk 0:02:30]}  Qc7 {[%clk 0:03:01]} 11. Qa4 {[%clk 0:02:21]}  Nbd7 {[%clk 0:03:00]} 12. Be3 {[%clk 0:02:09]}  Ne5 {[%clk 0:02:57]} 13. Nd2 {[%clk 0:02:03]}  Bf5 {[%clk 0:02:55]} 14. Rfd1 {[%clk 0:01:58]}  Neg4 {[%clk 0:02:48]} 15. Nf1 {[%clk 0:01:46]}  Nd5 {[%clk 0:02:31]} 16. Bxg4 {[%clk 0:01:33]}  Bxg4 {[%clk 0:02:29]} 17. Rd4 {[%clk 0:01:33]}  Nf6 {[%clk 0:01:56]} 18. Rxd8+ {[%clk 0:01:25]}  Rxd8 {[%clk 0:01:56]} 19. Qxa7 {[%clk 0:01:24]}  Be2 {[%clk 0:01:55]} 20. Qb6 {[%clk 0:01:21]}  Qd7 {[%clk 0:01:56]} 21. Qd6 {[%clk 0:01:12]}  Qc8 {[%clk 0:01:54]} 22. Qf4 {[%clk 0:01:00]}  Bd3 {[%clk 0:01:46]} 23. Bd4 {[%clk 0:00:56]}  Nd5 {[%clk 0:01:38]} 24. Qg3 {[%clk 0:00:54]}  f6 {[%clk 0:01:36]} 25. Ne3 {[%clk 0:00:54]}  Nxe3 {[%clk 0:01:35]} 26. Qxe3 {[%clk 0:00:55]}  Qe6 {[%clk 0:01:32]} 27. b4 {[%clk 0:00:52]}  h6 {[%clk 0:01:27]} 28. a4 {[%clk 0:00:49]}  Rd5 {[%clk 0:01:24]} 29. Re1 {[%clk 0:00:42]}  Rg5 {[%clk 0:01:17]} 30. Kh1 {[%clk 0:00:22]}  Qg4 {[%clk 0:01:14]} 31. Qg3 {[%clk 0:00:20]}  Qh5 {[%clk 0:01:11]} 32. Qb8+ {[%clk 0:00:16]}  Kh7 {[%clk 0:01:11]} 33. Qf4 {[%clk 0:00:16]}  Rg4 {[%clk 0:01:06]} 34. Qe3 {[%clk 0:00:16]}  f5 {[%clk 0:01:06]} 35. f3 {[%clk 0:00:15]}  exf3 {[%clk 0:00:16]} 36. gxf3 {[%clk 0:00:14]}  Rh4 {[%clk 0:00:14]} 37. Qf2 {[%clk 0:00:12]}  Rh3 {[%clk 0:00:14]} 38. Re3 {[%clk 0:00:12]}  Bc4 {[%clk 0:00:10]} 39. Qg2 {[%clk 0:00:12]}  f4 {[%clk 0:00:06]} 40. Qxg7# {[%clk 0:00:12]} 1-0


[Site "https://www.chess.com"]

[Event "Titled Tuesday Blitz May 23 Early 2023"]
[White "Gheorghiu, Calin"]
[Black "Real_taiatai"]
[WhiteFideId "1200305"]
[WhiteElo "2223"]
[BlackElo "2339"]
[Result "1-0"]
[Round "03"]
[TimeControl "180+2"]
[Date "2023.05.23"]
[WhiteClock "0:00:35"]
[BlackClock "0:00:15"]

1. e4 {[%clk 0:03:00]}  e6 {[%clk 0:02:48]} 2. d4 {[%clk 0:03:00]}  d5 {[%clk 0:02:48]} 3. Nc3 {[%clk 0:03:00]}  Bb4 {[%clk 0:02:46]} 4. e5 {[%clk 0:03:01]}  Ne7 {[%clk 0:02:45]} 5. a3 {[%clk 0:02:59]}  Bxc3+ {[%clk 0:02:45]} 6. bxc3 {[%clk 0:03:00]}  b6 {[%clk 0:02:46]} 7. Qg4 {[%clk 0:02:54]}  Kf8 {[%clk 0:02:45]} 8. h4 {[%clk 0:02:53]}  h5 {[%clk 0:02:39]} 9. Qf3 {[%clk 0:02:47]}  Ba6 {[%clk 0:02:38]} 10. Bd3 {[%clk 0:02:40]}  Bxd3 {[%clk 0:02:32]} 11. cxd3 {[%clk 0:02:40]}  Nd7 {[%clk 0:02:30]} 12. Nh3 {[%clk 0:02:38]}  Nf5 {[%clk 0:02:22]} 13. Ng5 {[%clk 0:02:37]}  c5 {[%clk 0:02:14]} 14. a4 {[%clk 0:02:22]}  Qc8 {[%clk 0:02:05]} 15. Ba3 {[%clk 0:02:21]}  Kg8 {[%clk 0:02:02]} 16. O-O {[%clk 0:02:09]}  cxd4 {[%clk 0:01:37]} 17. cxd4 {[%clk 0:02:09]}  Qc3 {[%clk 0:01:38]} 18. Ra2 {[%clk 0:01:11]}  Qxd4 {[%clk 0:01:31]} 19. Rc2 {[%clk 0:01:08]}  Nxe5 {[%clk 0:01:29]} 20. Qe2 {[%clk 0:01:07]}  Qxd3 {[%clk 0:01:13]} 21. Rfc1 {[%clk 0:01:01]}  g6 {[%clk 0:00:40]} 22. Rc8+ {[%clk 0:00:37]}  Rxc8 {[%clk 0:00:20]} 23. Rxc8+ {[%clk 0:00:36]}  Kg7 {[%clk 0:00:21]} 24. Qxe5+ {[%clk 0:00:36]}  f6 {[%clk 0:00:21]} 25. Qc7+ {[%clk 0:00:36]}  Kh6 {[%clk 0:00:15]} 26. Rxh8# {[%clk 0:00:35]} 1-0


[Site "https://www.chess.com"]